{"text_format":"3","workbook":"xlsx","n_sheets":4,"sheets":["МЕРОПРИЯТИЯ","КАЛЕНДАРЬ","ВЕРСИЯ ДЛЯ ПЕЧАТИ","АДМИНИСТРАТОР"],"not_rendered":{"defined_names":18},"read":"whole","date_system":"1900"}

{"sheet":"МЕРОПРИЯТИЯ","index":0,"n_rows":38,"n_cols":5,"rows_kept":38}
[]
[null,"ЕЖЕМЕСЯЧНЫЙ ПЛАНИРОВЩИК"]
[null,"ОБЩЕСТВЕННЫХ МЕРОПРИЯТИЙ"]
[]
[]
[]
[]
[null,"ДАТА","ДЕНЬ","МЕСЯЦ","НАЗВАНИЕ МЕРОПРИЯТИЯ"]
[null,"2016-07-01",{"$f":"IF(ISBLANK(tabEvents[[#This Row],[ДАТА]]),\"\",UPPER(TEXT(tabEvents[[#This Row],[ДАТА]],\"ДДД\")))","v":"ПТ"},{"$f":"IF(ISBLANK(tabEvents[[#This Row],[ДАТА]]),\"\",UPPER(TEXT(tabEvents[[#This Row],[ДАТА]],\"МММ\")))","v":"ИЮЛ"},"Общественный сад"]
[null,"2016-07-01",{"$f":"IF(ISBLANK(tabEvents[[#This Row],[ДАТА]]),\"\",UPPER(TEXT(tabEvents[[#This Row],[ДАТА]],\"ДДД\")))","v":"ПТ"},{"$f":"IF(ISBLANK(tabEvents[[#This Row],[ДАТА]]),\"\",UPPER(TEXT(tabEvents[[#This Row],[ДАТА]],\"МММ\")))","v":"ИЮЛ"},"Муниципалитет"]
[null,"2016-07-02",{"$f":"IF(ISBLANK(tabEvents[[#This Row],[ДАТА]]),\"\",UPPER(TEXT(tabEvents[[#This Row],[ДАТА]],\"ДДД\")))","v":"СБ"},{"$f":"IF(ISBLANK(tabEvents[[#This Row],[ДАТА]]),\"\",UPPER(TEXT(tabEvents[[#This Row],[ДАТА]],\"МММ\")))","v":"ИЮЛ"},"Общественный сад"]
[null,"2016-07-03",{"$f":"IF(ISBLANK(tabEvents[[#This Row],[ДАТА]]),\"\",UPPER(TEXT(tabEvents[[#This Row],[ДАТА]],\"ДДД\")))","v":"ВС"},{"$f":"IF(ISBLANK(tabEvents[[#This Row],[ДАТА]]),\"\",UPPER(TEXT(tabEvents[[#This Row],[ДАТА]],\"МММ\")))","v":"ИЮЛ"},"Вечер кино в парке"]
[null,"2016-07-08",{"$f":"IF(ISBLANK(tabEvents[[#This Row],[ДАТА]]),\"\",UPPER(TEXT(tabEvents[[#This Row],[ДАТА]],\"ДДД\")))","v":"ПТ"},{"$f":"IF(ISBLANK(tabEvents[[#This Row],[ДАТА]]),\"\",UPPER(TEXT(tabEvents[[#This Row],[ДАТА]],\"МММ\")))","v":"ИЮЛ"},"Муниципалитет"]
[null,"2016-07-11",{"$f":"IF(ISBLANK(tabEvents[[#This Row],[ДАТА]]),\"\",UPPER(TEXT(tabEvents[[#This Row],[ДАТА]],\"ДДД\")))","v":"ПН"},{"$f":"IF(ISBLANK(tabEvents[[#This Row],[ДАТА]]),\"\",UPPER(TEXT(tabEvents[[#This Row],[ДАТА]],\"МММ\")))","v":"ИЮЛ"},"Званый завтрак в торговой палате"]
[null,"2016-07-12",{"$f":"IF(ISBLANK(tabEvents[[#This Row],[ДАТА]]),\"\",UPPER(TEXT(tabEvents[[#This Row],[ДАТА]],\"ДДД\")))","v":"ВТ"},{"$f":"IF(ISBLANK(tabEvents[[#This Row],[ДАТА]]),\"\",UPPER(TEXT(tabEvents[[#This Row],[ДАТА]],\"МММ\")))","v":"ИЮЛ"},"Антикварная выставка"]
[null,"2016-07-14",{"$f":"IF(ISBLANK(tabEvents[[#This Row],[ДАТА]]),\"\",UPPER(TEXT(tabEvents[[#This Row],[ДАТА]],\"ДДД\")))","v":"ЧТ"},{"$f":"IF(ISBLANK(tabEvents[[#This Row],[ДАТА]]),\"\",UPPER(TEXT(tabEvents[[#This Row],[ДАТА]],\"МММ\")))","v":"ИЮЛ"},"Общественный семинар"]
[null,"2016-07-15",{"$f":"IF(ISBLANK(tabEvents[[#This Row],[ДАТА]]),\"\",UPPER(TEXT(tabEvents[[#This Row],[ДАТА]],\"ДДД\")))","v":"ПТ"},{"$f":"IF(ISBLANK(tabEvents[[#This Row],[ДАТА]]),\"\",UPPER(TEXT(tabEvents[[#This Row],[ДАТА]],\"МММ\")))","v":"ИЮЛ"},"Муниципалитет"]
[null,"2016-07-19",{"$f":"IF(ISBLANK(tabEvents[[#This Row],[ДАТА]]),\"\",UPPER(TEXT(tabEvents[[#This Row],[ДАТА]],\"ДДД\")))","v":"ВТ"},{"$f":"IF(ISBLANK(tabEvents[[#This Row],[ДАТА]]),\"\",UPPER(TEXT(tabEvents[[#This Row],[ДАТА]],\"МММ\")))","v":"ИЮЛ"},"Семинар по стратегическому планированию"]
[null,"2016-07-20",{"$f":"IF(ISBLANK(tabEvents[[#This Row],[ДАТА]]),\"\",UPPER(TEXT(tabEvents[[#This Row],[ДАТА]],\"ДДД\")))","v":"СР"},{"$f":"IF(ISBLANK(tabEvents[[#This Row],[ДАТА]]),\"\",UPPER(TEXT(tabEvents[[#This Row],[ДАТА]],\"МММ\")))","v":"ИЮЛ"},"Уборка в парке"]
[null,"2016-07-22",{"$f":"IF(ISBLANK(tabEvents[[#This Row],[ДАТА]]),\"\",UPPER(TEXT(tabEvents[[#This Row],[ДАТА]],\"ДДД\")))","v":"ПТ"},{"$f":"IF(ISBLANK(tabEvents[[#This Row],[ДАТА]]),\"\",UPPER(TEXT(tabEvents[[#This Row],[ДАТА]],\"МММ\")))","v":"ИЮЛ"},"Муниципалитет"]
[null,"2016-07-26",{"$f":"IF(ISBLANK(tabEvents[[#This Row],[ДАТА]]),\"\",UPPER(TEXT(tabEvents[[#This Row],[ДАТА]],\"ДДД\")))","v":"ВТ"},{"$f":"IF(ISBLANK(tabEvents[[#This Row],[ДАТА]]),\"\",UPPER(TEXT(tabEvents[[#This Row],[ДАТА]],\"МММ\")))","v":"ИЮЛ"},"Экскурсия по деловой части города"]
[null,"2016-07-26",{"$f":"IF(ISBLANK(tabEvents[[#This Row],[ДАТА]]),\"\",UPPER(TEXT(tabEvents[[#This Row],[ДАТА]],\"ДДД\")))","v":"ВТ"},{"$f":"IF(ISBLANK(tabEvents[[#This Row],[ДАТА]]),\"\",UPPER(TEXT(tabEvents[[#This Row],[ДАТА]],\"МММ\")))","v":"ИЮЛ"},"Посещение баров"]
[null,"2016-07-29",{"$f":"IF(ISBLANK(tabEvents[[#This Row],[ДАТА]]),\"\",UPPER(TEXT(tabEvents[[#This Row],[ДАТА]],\"ДДД\")))","v":"ПТ"},{"$f":"IF(ISBLANK(tabEvents[[#This Row],[ДАТА]]),\"\",UPPER(TEXT(tabEvents[[#This Row],[ДАТА]],\"МММ\")))","v":"ИЮЛ"},"Муниципалитет"]
[null,"2016-08-05",{"$f":"IF(ISBLANK(tabEvents[[#This Row],[ДАТА]]),\"\",UPPER(TEXT(tabEvents[[#This Row],[ДАТА]],\"ДДД\")))","v":"ПТ"},{"$f":"IF(ISBLANK(tabEvents[[#This Row],[ДАТА]]),\"\",UPPER(TEXT(tabEvents[[#This Row],[ДАТА]],\"МММ\")))","v":"АВГ"},"Муниципалитет"]
[null,"2016-08-10",{"$f":"IF(ISBLANK(tabEvents[[#This Row],[ДАТА]]),\"\",UPPER(TEXT(tabEvents[[#This Row],[ДАТА]],\"ДДД\")))","v":"СР"},{"$f":"IF(ISBLANK(tabEvents[[#This Row],[ДАТА]]),\"\",UPPER(TEXT(tabEvents[[#This Row],[ДАТА]],\"МММ\")))","v":"АВГ"},"Уборка в парке"]
[null,"2016-08-12",{"$f":"IF(ISBLANK(tabEvents[[#This Row],[ДАТА]]),\"\",UPPER(TEXT(tabEvents[[#This Row],[ДАТА]],\"ДДД\")))","v":"ПТ"},{"$f":"IF(ISBLANK(tabEvents[[#This Row],[ДАТА]]),\"\",UPPER(TEXT(tabEvents[[#This Row],[ДАТА]],\"МММ\")))","v":"АВГ"},"Муниципалитет"]
[null,"2016-08-13",{"$f":"IF(ISBLANK(tabEvents[[#This Row],[ДАТА]]),\"\",UPPER(TEXT(tabEvents[[#This Row],[ДАТА]],\"ДДД\")))","v":"СБ"},{"$f":"IF(ISBLANK(tabEvents[[#This Row],[ДАТА]]),\"\",UPPER(TEXT(tabEvents[[#This Row],[ДАТА]],\"МММ\")))","v":"АВГ"},"Общественный сад"]
[null,"2016-09-01",{"$f":"IF(ISBLANK(tabEvents[[#This Row],[ДАТА]]),\"\",UPPER(TEXT(tabEvents[[#This Row],[ДАТА]],\"ДДД\")))","v":"ЧТ"},{"$f":"IF(ISBLANK(tabEvents[[#This Row],[ДАТА]]),\"\",UPPER(TEXT(tabEvents[[#This Row],[ДАТА]],\"МММ\")))","v":"СЕН"},"Бюджетный комитет"]
[null,"2016-10-01",{"$f":"IF(ISBLANK(tabEvents[[#This Row],[ДАТА]]),\"\",UPPER(TEXT(tabEvents[[#This Row],[ДАТА]],\"ДДД\")))","v":"СБ"},{"$f":"IF(ISBLANK(tabEvents[[#This Row],[ДАТА]]),\"\",UPPER(TEXT(tabEvents[[#This Row],[ДАТА]],\"МММ\")))","v":"ОКТ"},"Бюджетный комитет"]
[null,"2016-11-03",{"$f":"IF(ISBLANK(tabEvents[[#This Row],[ДАТА]]),\"\",UPPER(TEXT(tabEvents[[#This Row],[ДАТА]],\"ДДД\")))","v":"ЧТ"},{"$f":"IF(ISBLANK(tabEvents[[#This Row],[ДАТА]]),\"\",UPPER(TEXT(tabEvents[[#This Row],[ДАТА]],\"МММ\")))","v":"НОЯ"},"Бюджетный комитет"]
[null,"2016-12-01",{"$f":"IF(ISBLANK(tabEvents[[#This Row],[ДАТА]]),\"\",UPPER(TEXT(tabEvents[[#This Row],[ДАТА]],\"ДДД\")))","v":"ЧТ"},{"$f":"IF(ISBLANK(tabEvents[[#This Row],[ДАТА]]),\"\",UPPER(TEXT(tabEvents[[#This Row],[ДАТА]],\"МММ\")))","v":"ДЕК"},"Бюджетный комитет"]
[null,"2017-01-01",{"$f":"IF(ISBLANK(tabEvents[[#This Row],[ДАТА]]),\"\",UPPER(TEXT(tabEvents[[#This Row],[ДАТА]],\"ДДД\")))","v":"ВС"},{"$f":"IF(ISBLANK(tabEvents[[#This Row],[ДАТА]]),\"\",UPPER(TEXT(tabEvents[[#This Row],[ДАТА]],\"МММ\")))","v":"ЯНВ"},"Бюджетный комитет"]
[null,"2017-02-02",{"$f":"IF(ISBLANK(tabEvents[[#This Row],[ДАТА]]),\"\",UPPER(TEXT(tabEvents[[#This Row],[ДАТА]],\"ДДД\")))","v":"ЧТ"},{"$f":"IF(ISBLANK(tabEvents[[#This Row],[ДАТА]]),\"\",UPPER(TEXT(tabEvents[[#This Row],[ДАТА]],\"МММ\")))","v":"ФЕВ"},"Бюджетный комитет"]
[null,"2017-03-02",{"$f":"IF(ISBLANK(tabEvents[[#This Row],[ДАТА]]),\"\",UPPER(TEXT(tabEvents[[#This Row],[ДАТА]],\"ДДД\")))","v":"ЧТ"},{"$f":"IF(ISBLANK(tabEvents[[#This Row],[ДАТА]]),\"\",UPPER(TEXT(tabEvents[[#This Row],[ДАТА]],\"МММ\")))","v":"МАР"},"Бюджетный комитет"]
[null,"2017-04-01",{"$f":"IF(ISBLANK(tabEvents[[#This Row],[ДАТА]]),\"\",UPPER(TEXT(tabEvents[[#This Row],[ДАТА]],\"ДДД\")))","v":"СБ"},{"$f":"IF(ISBLANK(tabEvents[[#This Row],[ДАТА]]),\"\",UPPER(TEXT(tabEvents[[#This Row],[ДАТА]],\"МММ\")))","v":"АПР"},"Бюджетный комитет"]
[null,"2017-05-01",{"$f":"IF(ISBLANK(tabEvents[[#This Row],[ДАТА]]),\"\",UPPER(TEXT(tabEvents[[#This Row],[ДАТА]],\"ДДД\")))","v":"ПН"},{"$f":"IF(ISBLANK(tabEvents[[#This Row],[ДАТА]]),\"\",UPPER(TEXT(tabEvents[[#This Row],[ДАТА]],\"МММ\")))","v":"МАЙ"},"Бюджетный комитет"]
[null,"2017-06-01",{"$f":"IF(ISBLANK(tabEvents[[#This Row],[ДАТА]]),\"\",UPPER(TEXT(tabEvents[[#This Row],[ДАТА]],\"ДДД\")))","v":"ЧТ"},{"$f":"IF(ISBLANK(tabEvents[[#This Row],[ДАТА]]),\"\",UPPER(TEXT(tabEvents[[#This Row],[ДАТА]],\"МММ\")))","v":"ИЮН"},"Бюджетный комитет"]
[null,"2017-06-02",{"$f":"IF(ISBLANK(tabEvents[[#This Row],[ДАТА]]),\"\",UPPER(TEXT(tabEvents[[#This Row],[ДАТА]],\"ДДД\")))","v":"ПТ"},{"$f":"IF(ISBLANK(tabEvents[[#This Row],[ДАТА]]),\"\",UPPER(TEXT(tabEvents[[#This Row],[ДАТА]],\"МММ\")))","v":"ИЮН"},"Муниципалитет"]

{"sheet":"КАЛЕНДАРЬ","index":1,"n_rows":35,"n_cols":21,"rows_kept":35,"merged":[[1,5,1,11],[30,8,34,20]]}
[]
[null,null,2016,null,null,{"$f":"LOOKUP(MonthNum,tblMonths[ЧИСЛО],tblMonths[МЕСЯЦ])","v":"ИЮЛЬ"}]
[null,null,7,null,null,{"$f":"DATE(ПросмотретьГод,MonthNum,1)","v":"2016-07-01"},null,null,{"$f":"WEEKDAY(ДатаНачала)","v":6}]
[null,null,"ПН",null,null,"ВТ",null,null,"СР",null,null,"ЧТ",null,null,"ПТ",null,null,"СБ",null,null,"ВС"]
[]
[null,null,{"$f":"ДатаНачала-(WEEKDAY(ДатаНачала)-2)+{0;1;2;3;4;5}*7 +{1,2,3,4,5,6,7}-3+COLUMN(B1)","v":"2016-06-27"},null,null,{"$f":"ДатаНачала-(WEEKDAY(ДатаНачала)-2)+{0;1;2;3;4;5}*7 +{1,2,3,4,5,6,7}-3+COLUMN(C1)","v":"2016-06-28"},null,null,{"$f":"ДатаНачала-(WEEKDAY(ДатаНачала)-2)+{0;1;2;3;4;5}*7 +{1,2,3,4,5,6,7}-3+COLUMN(D1)","v":"2016-06-29"},null,null,{"$f":"ДатаНачала-(WEEKDAY(ДатаНачала)-2)+{0;1;2;3;4;5}*7 +{1,2,3,4,5,6,7}-3+COLUMN(E1)","v":"2016-06-30"},null,null,{"$f":"ДатаНачала-(WEEKDAY(ДатаНачала)-2)+{0;1;2;3;4;5}*7 +{1,2,3,4,5,6,7}-3+COLUMN(F1)","v":"2016-07-01"},null,null,{"$f":"ДатаНачала-(WEEKDAY(ДатаНачала)-2)+{0;1;2;3;4;5}*7 +{1,2,3,4,5,6,7}-3+COLUMN(G1)","v":"2016-07-02"},null,null,{"$f":"ДатаНачала-(WEEKDAY(ДатаНачала)-2)+{0;1;2;3;4;5}*7 +{1,2,3,4,5,6,7}-3+COLUMN(H1)","v":"2016-07-03"}]
[null,null,{"$f":"IFERROR(INDEX(tabEvents[],SMALL(IF(Даты=C$6,ROW(Даты)),ROW(1:1))-НачальныйРядТаблицы,4),\"\")","v":""},null,null,{"$f":"IFERROR(INDEX(tabEvents[],SMALL(IF(Даты=F$6,ROW(Даты)),ROW(1:1))-НачальныйРядТаблицы,4),\"\")","v":""},null,null,{"$f":"IFERROR(INDEX(tabEvents[],SMALL(IF(Даты=I$6,ROW(Даты)),ROW(1:1))-НачальныйРядТаблицы,4),\"\")","v":""},null,null,{"$f":"IFERROR(INDEX(tabEvents[],SMALL(IF(Даты=L$6,ROW(Даты)),ROW(1:1))-НачальныйРядТаблицы,4),\"\")","v":""},null,null,{"$f":"IFERROR(INDEX(tabEvents[],SMALL(IF(Даты=O$6,ROW(Даты)),ROW(1:1))-НачальныйРядТаблицы,4),\"\")","v":"Общественный сад"},null,null,{"$f":"IFERROR(INDEX(tabEvents[],SMALL(IF(Даты=R$6,ROW(Даты)),ROW(1:1))-НачальныйРядТаблицы,4),\"\")","v":"Общественный сад"},null,null,{"$f":"IFERROR(INDEX(tabEvents[],SMALL(IF(Даты=U$6,ROW(Даты)),ROW(1:1))-НачальныйРядТаблицы,4),\"\")","v":"Вечер кино в парке"}]
[null,null,{"$f":"IFERROR(INDEX(tabEvents[],SMALL(IF(Даты=C$6,ROW(Даты)),ROW(2:2))-НачальныйРядТаблицы,4),\"\")","v":""},null,null,{"$f":"IFERROR(INDEX(tabEvents[],SMALL(IF(Даты=F$6,ROW(Даты)),ROW(2:2))-НачальныйРядТаблицы,4),\"\")","v":""},null,null,{"$f":"IFERROR(INDEX(tabEvents[],SMALL(IF(Даты=I$6,ROW(Даты)),ROW(2:2))-НачальныйРядТаблицы,4),\"\")","v":""},null,null,{"$f":"IFERROR(INDEX(tabEvents[],SMALL(IF(Даты=L$6,ROW(Даты)),ROW(2:2))-НачальныйРядТаблицы,4),\"\")","v":""},null,null,{"$f":"IFERROR(INDEX(tabEvents[],SMALL(IF(Даты=O$6,ROW(Даты)),ROW(2:2))-НачальныйРядТаблицы,4),\"\")","v":"Муниципалитет"},null,null,{"$f":"IFERROR(INDEX(tabEvents[],SMALL(IF(Даты=R$6,ROW(Даты)),ROW(2:2))-НачальныйРядТаблицы,4),\"\")","v":""},null,null,{"$f":"IFERROR(INDEX(tabEvents[],SMALL(IF(Даты=U$6,ROW(Даты)),ROW(2:2))-НачальныйРядТаблицы,4),\"\")","v":""}]
[null,null,{"$f":"IFERROR(INDEX(tabEvents[],SMALL(IF(Даты=C$6,ROW(Даты)),ROW(3:3))-НачальныйРядТаблицы,4),\"\")","v":""},null,null,{"$f":"IFERROR(INDEX(tabEvents[],SMALL(IF(Даты=F$6,ROW(Даты)),ROW(3:3))-НачальныйРядТаблицы,4),\"\")","v":""},null,null,{"$f":"IFERROR(INDEX(tabEvents[],SMALL(IF(Даты=I$6,ROW(Даты)),ROW(3:3))-НачальныйРядТаблицы,4),\"\")","v":""},null,null,{"$f":"IFERROR(INDEX(tabEvents[],SMALL(IF(Даты=L$6,ROW(Даты)),ROW(3:3))-НачальныйРядТаблицы,4),\"\")","v":""},null,null,{"$f":"IFERROR(INDEX(tabEvents[],SMALL(IF(Даты=O$6,ROW(Даты)),ROW(3:3))-НачальныйРядТаблицы,4),\"\")","v":""},null,null,{"$f":"IFERROR(INDEX(tabEvents[],SMALL(IF(Даты=R$6,ROW(Даты)),ROW(3:3))-НачальныйРядТаблицы,4),\"\")","v":""},null,null,{"$f":"IFERROR(INDEX(tabEvents[],SMALL(IF(Даты=U$6,ROW(Даты)),ROW(3:3))-НачальныйРядТаблицы,4),\"\")","v":""}]
[null,null,{"$f":"IFERROR(INDEX(tabEvents[],SMALL(IF(Даты=C$6,ROW(Даты)),ROW(4:4))-НачальныйРядТаблицы,4),\"\")","v":""},null,null,{"$f":"IFERROR(INDEX(tabEvents[],SMALL(IF(Даты=F$6,ROW(Даты)),ROW(4:4))-НачальныйРядТаблицы,4),\"\")","v":""},null,null,{"$f":"IFERROR(INDEX(tabEvents[],SMALL(IF(Даты=I$6,ROW(Даты)),ROW(4:4))-НачальныйРядТаблицы,4),\"\")","v":""},null,null,{"$f":"IFERROR(INDEX(tabEvents[],SMALL(IF(Даты=L$6,ROW(Даты)),ROW(4:4))-НачальныйРядТаблицы,4),\"\")","v":""},null,null,{"$f":"IFERROR(INDEX(tabEvents[],SMALL(IF(Даты=O$6,ROW(Даты)),ROW(4:4))-НачальныйРядТаблицы,4),\"\")","v":""},null,null,{"$f":"IFERROR(INDEX(tabEvents[],SMALL(IF(Даты=R$6,ROW(Даты)),ROW(4:4))-НачальныйРядТаблицы,4),\"\")","v":""},null,null,{"$f":"IFERROR(INDEX(tabEvents[],SMALL(IF(Даты=U$6,ROW(Даты)),ROW(4:4))-НачальныйРядТаблицы,4),\"\")","v":""}]
[null,null,{"$f":"U6+1","v":"2016-07-04"},null,null,{"$f":"C11+1","v":"2016-07-05"},null,null,{"$f":"F11+1","v":"2016-07-06"},null,null,{"$f":"I11+1","v":"2016-07-07"},null,null,{"$f":"L11+1","v":"2016-07-08"},null,null,{"$f":"O11+1","v":"2016-07-09"},null,null,{"$f":"R11+1","v":"2016-07-10"}]
[null,null,{"$f":"IFERROR(INDEX(tabEvents[],SMALL(IF(Даты=C$11,ROW(Даты)),ROW(1:1))-НачальныйРядТаблицы,4),\"\")","v":""},null,null,{"$f":"IFERROR(INDEX(tabEvents[],SMALL(IF(Даты=F$11,ROW(Даты)),ROW(1:1))-НачальныйРядТаблицы,4),\"\")","v":""},null,null,{"$f":"IFERROR(INDEX(tabEvents[],SMALL(IF(Даты=I$11,ROW(Даты)),ROW(1:1))-НачальныйРядТаблицы,4),\"\")","v":""},null,null,{"$f":"IFERROR(INDEX(tabEvents[],SMALL(IF(Даты=L$11,ROW(Даты)),ROW(1:1))-НачальныйРядТаблицы,4),\"\")","v":""},null,null,{"$f":"IFERROR(INDEX(tabEvents[],SMALL(IF(Даты=O$11,ROW(Даты)),ROW(1:1))-НачальныйРядТаблицы,4),\"\")","v":"Муниципалитет"},null,null,{"$f":"IFERROR(INDEX(tabEvents[],SMALL(IF(Даты=R$11,ROW(Даты)),ROW(1:1))-НачальныйРядТаблицы,4),\"\")","v":""},null,null,{"$f":"IFERROR(INDEX(tabEvents[],SMALL(IF(Даты=U$11,ROW(Даты)),ROW(1:1))-НачальныйРядТаблицы,4),\"\")","v":""}]
[null,null,{"$f":"IFERROR(INDEX(tabEvents[],SMALL(IF(Даты=C$11,ROW(Даты)),ROW(2:2))-НачальныйРядТаблицы,4),\"\")","v":""},null,null,{"$f":"IFERROR(INDEX(tabEvents[],SMALL(IF(Даты=F$11,ROW(Даты)),ROW(2:2))-НачальныйРядТаблицы,4),\"\")","v":""},null,null,{"$f":"IFERROR(INDEX(tabEvents[],SMALL(IF(Даты=I$11,ROW(Даты)),ROW(2:2))-НачальныйРядТаблицы,4),\"\")","v":""},null,null,{"$f":"IFERROR(INDEX(tabEvents[],SMALL(IF(Даты=L$11,ROW(Даты)),ROW(2:2))-НачальныйРядТаблицы,4),\"\")","v":""},null,null,{"$f":"IFERROR(INDEX(tabEvents[],SMALL(IF(Даты=O$11,ROW(Даты)),ROW(2:2))-НачальныйРядТаблицы,4),\"\")","v":""},null,null,{"$f":"IFERROR(INDEX(tabEvents[],SMALL(IF(Даты=R$11,ROW(Даты)),ROW(2:2))-НачальныйРядТаблицы,4),\"\")","v":""},null,null,{"$f":"IFERROR(INDEX(tabEvents[],SMALL(IF(Даты=U$11,ROW(Даты)),ROW(2:2))-НачальныйРядТаблицы,4),\"\")","v":""}]
[null,null,{"$f":"IFERROR(INDEX(tabEvents[],SMALL(IF(Даты=C$11,ROW(Даты)),ROW(3:3))-НачальныйРядТаблицы,4),\"\")","v":""},null,null,{"$f":"IFERROR(INDEX(tabEvents[],SMALL(IF(Даты=F$11,ROW(Даты)),ROW(3:3))-НачальныйРядТаблицы,4),\"\")","v":""},null,null,{"$f":"IFERROR(INDEX(tabEvents[],SMALL(IF(Даты=I$11,ROW(Даты)),ROW(3:3))-НачальныйРядТаблицы,4),\"\")","v":""},null,null,{"$f":"IFERROR(INDEX(tabEvents[],SMALL(IF(Даты=L$11,ROW(Даты)),ROW(3:3))-НачальныйРядТаблицы,4),\"\")","v":""},null,null,{"$f":"IFERROR(INDEX(tabEvents[],SMALL(IF(Даты=O$11,ROW(Даты)),ROW(3:3))-НачальныйРядТаблицы,4),\"\")","v":""},null,null,{"$f":"IFERROR(INDEX(tabEvents[],SMALL(IF(Даты=R$11,ROW(Даты)),ROW(3:3))-НачальныйРядТаблицы,4),\"\")","v":""},null,null,{"$f":"IFERROR(INDEX(tabEvents[],SMALL(IF(Даты=U$11,ROW(Даты)),ROW(3:3))-НачальныйРядТаблицы,4),\"\")","v":""}]
[null,null,{"$f":"IFERROR(INDEX(tabEvents[],SMALL(IF(Даты=C$11,ROW(Даты)),ROW(4:4))-НачальныйРядТаблицы,4),\"\")","v":""},null,null,{"$f":"IFERROR(INDEX(tabEvents[],SMALL(IF(Даты=F$11,ROW(Даты)),ROW(4:4))-НачальныйРядТаблицы,4),\"\")","v":""},null,null,{"$f":"IFERROR(INDEX(tabEvents[],SMALL(IF(Даты=I$11,ROW(Даты)),ROW(4:4))-НачальныйРядТаблицы,4),\"\")","v":""},null,null,{"$f":"IFERROR(INDEX(tabEvents[],SMALL(IF(Даты=L$11,ROW(Даты)),ROW(4:4))-НачальныйРядТаблицы,4),\"\")","v":""},null,null,{"$f":"IFERROR(INDEX(tabEvents[],SMALL(IF(Даты=O$11,ROW(Даты)),ROW(4:4))-НачальныйРядТаблицы,4),\"\")","v":""},null,null,{"$f":"IFERROR(INDEX(tabEvents[],SMALL(IF(Даты=R$11,ROW(Даты)),ROW(4:4))-НачальныйРядТаблицы,4),\"\")","v":""},null,null,{"$f":"IFERROR(INDEX(tabEvents[],SMALL(IF(Даты=U$11,ROW(Даты)),ROW(4:4))-НачальныйРядТаблицы,4),\"\")","v":""}]
[null,null,{"$f":"U11+1","v":"2016-07-11"},null,null,{"$f":"C16+1","v":"2016-07-12"},null,null,{"$f":"F16+1","v":"2016-07-13"},null,null,{"$f":"I16+1","v":"2016-07-14"},null,null,{"$f":"L16+1","v":"2016-07-15"},null,null,{"$f":"O16+1","v":"2016-07-16"},null,null,{"$f":"R16+1","v":"2016-07-17"}]
[null,null,{"$f":"IFERROR(INDEX(tabEvents[],SMALL(IF(Даты=C$16,ROW(Даты)),ROW(1:1))-НачальныйРядТаблицы,4),\"\")","v":"Званый завтрак в торговой палате"},null,null,{"$f":"IFERROR(INDEX(tabEvents[],SMALL(IF(Даты=F$16,ROW(Даты)),ROW(1:1))-НачальныйРядТаблицы,4),\"\")","v":"Антикварная выставка"},null,null,{"$f":"IFERROR(INDEX(tabEvents[],SMALL(IF(Даты=I$16,ROW(Даты)),ROW(1:1))-НачальныйРядТаблицы,4),\"\")","v":""},null,null,{"$f":"IFERROR(INDEX(tabEvents[],SMALL(IF(Даты=L$16,ROW(Даты)),ROW(1:1))-НачальныйРядТаблицы,4),\"\")","v":"Общественный семинар"},null,null,{"$f":"IFERROR(INDEX(tabEvents[],SMALL(IF(Даты=O$16,ROW(Даты)),ROW(1:1))-НачальныйРядТаблицы,4),\"\")","v":"Муниципалитет"},null,null,{"$f":"IFERROR(INDEX(tabEvents[],SMALL(IF(Даты=R$16,ROW(Даты)),ROW(1:1))-НачальныйРядТаблицы,4),\"\")","v":""},null,null,{"$f":"IFERROR(INDEX(tabEvents[],SMALL(IF(Даты=U$16,ROW(Даты)),ROW(1:1))-НачальныйРядТаблицы,4),\"\")","v":""}]
[null,null,{"$f":"IFERROR(INDEX(tabEvents[],SMALL(IF(Даты=C$16,ROW(Даты)),ROW(2:2))-НачальныйРядТаблицы,4),\"\")","v":""},null,null,{"$f":"IFERROR(INDEX(tabEvents[],SMALL(IF(Даты=F$16,ROW(Даты)),ROW(2:2))-НачальныйРядТаблицы,4),\"\")","v":""},null,null,{"$f":"IFERROR(INDEX(tabEvents[],SMALL(IF(Даты=I$16,ROW(Даты)),ROW(2:2))-НачальныйРядТаблицы,4),\"\")","v":""},null,null,{"$f":"IFERROR(INDEX(tabEvents[],SMALL(IF(Даты=L$16,ROW(Даты)),ROW(2:2))-НачальныйРядТаблицы,4),\"\")","v":""},null,null,{"$f":"IFERROR(INDEX(tabEvents[],SMALL(IF(Даты=O$16,ROW(Даты)),ROW(2:2))-НачальныйРядТаблицы,4),\"\")","v":""},null,null,{"$f":"IFERROR(INDEX(tabEvents[],SMALL(IF(Даты=R$16,ROW(Даты)),ROW(2:2))-НачальныйРядТаблицы,4),\"\")","v":""},null,null,{"$f":"IFERROR(INDEX(tabEvents[],SMALL(IF(Даты=U$16,ROW(Даты)),ROW(2:2))-НачальныйРядТаблицы,4),\"\")","v":""}]
[null,null,{"$f":"IFERROR(INDEX(tabEvents[],SMALL(IF(Даты=C$16,ROW(Даты)),ROW(3:3))-НачальныйРядТаблицы,4),\"\")","v":""},null,null,{"$f":"IFERROR(INDEX(tabEvents[],SMALL(IF(Даты=F$16,ROW(Даты)),ROW(3:3))-НачальныйРядТаблицы,4),\"\")","v":""},null,null,{"$f":"IFERROR(INDEX(tabEvents[],SMALL(IF(Даты=I$16,ROW(Даты)),ROW(3:3))-НачальныйРядТаблицы,4),\"\")","v":""},null,null,{"$f":"IFERROR(INDEX(tabEvents[],SMALL(IF(Даты=L$16,ROW(Даты)),ROW(3:3))-НачальныйРядТаблицы,4),\"\")","v":""},null,null,{"$f":"IFERROR(INDEX(tabEvents[],SMALL(IF(Даты=O$16,ROW(Даты)),ROW(3:3))-НачальныйРядТаблицы,4),\"\")","v":""},null,null,{"$f":"IFERROR(INDEX(tabEvents[],SMALL(IF(Даты=R$16,ROW(Даты)),ROW(3:3))-НачальныйРядТаблицы,4),\"\")","v":""},null,null,{"$f":"IFERROR(INDEX(tabEvents[],SMALL(IF(Даты=U$16,ROW(Даты)),ROW(3:3))-НачальныйРядТаблицы,4),\"\")","v":""}]
[null,null,{"$f":"IFERROR(INDEX(tabEvents[],SMALL(IF(Даты=C$16,ROW(Даты)),ROW(4:4))-НачальныйРядТаблицы,4),\"\")","v":""},null,null,{"$f":"IFERROR(INDEX(tabEvents[],SMALL(IF(Даты=F$16,ROW(Даты)),ROW(4:4))-НачальныйРядТаблицы,4),\"\")","v":""},null,null,{"$f":"IFERROR(INDEX(tabEvents[],SMALL(IF(Даты=I$16,ROW(Даты)),ROW(4:4))-НачальныйРядТаблицы,4),\"\")","v":""},null,null,{"$f":"IFERROR(INDEX(tabEvents[],SMALL(IF(Даты=L$16,ROW(Даты)),ROW(4:4))-НачальныйРядТаблицы,4),\"\")","v":""},null,null,{"$f":"IFERROR(INDEX(tabEvents[],SMALL(IF(Даты=O$16,ROW(Даты)),ROW(4:4))-НачальныйРядТаблицы,4),\"\")","v":""},null,null,{"$f":"IFERROR(INDEX(tabEvents[],SMALL(IF(Даты=R$16,ROW(Даты)),ROW(4:4))-НачальныйРядТаблицы,4),\"\")","v":""},null,null,{"$f":"IFERROR(INDEX(tabEvents[],SMALL(IF(Даты=U$16,ROW(Даты)),ROW(4:4))-НачальныйРядТаблицы,4),\"\")","v":""}]
[null,null,{"$f":"U16+1","v":"2016-07-18"},null,null,{"$f":"C21+1","v":"2016-07-19"},null,null,{"$f":"F21+1","v":"2016-07-20"},null,null,{"$f":"I21+1","v":"2016-07-21"},null,null,{"$f":"L21+1","v":"2016-07-22"},null,null,{"$f":"O21+1","v":"2016-07-23"},null,null,{"$f":"R21+1","v":"2016-07-24"}]
[null,null,{"$f":"IFERROR(INDEX(tabEvents[],SMALL(IF(Даты=C$21,ROW(Даты)),ROW(1:1))-НачальныйРядТаблицы,4),\"\")","v":""},null,null,{"$f":"IFERROR(INDEX(tabEvents[],SMALL(IF(Даты=F$21,ROW(Даты)),ROW(1:1))-НачальныйРядТаблицы,4),\"\")","v":"Семинар по стратегическому планированию"},null,null,{"$f":"IFERROR(INDEX(tabEvents[],SMALL(IF(Даты=I$21,ROW(Даты)),ROW(1:1))-НачальныйРядТаблицы,4),\"\")","v":"Уборка в парке"},null,null,{"$f":"IFERROR(INDEX(tabEvents[],SMALL(IF(Даты=L$21,ROW(Даты)),ROW(1:1))-НачальныйРядТаблицы,4),\"\")","v":""},null,null,{"$f":"IFERROR(INDEX(tabEvents[],SMALL(IF(Даты=O$21,ROW(Даты)),ROW(1:1))-НачальныйРядТаблицы,4),\"\")","v":"Муниципалитет"},null,null,{"$f":"IFERROR(INDEX(tabEvents[],SMALL(IF(Даты=R$21,ROW(Даты)),ROW(1:1))-НачальныйРядТаблицы,4),\"\")","v":""},null,null,{"$f":"IFERROR(INDEX(tabEvents[],SMALL(IF(Даты=U$21,ROW(Даты)),ROW(1:1))-НачальныйРядТаблицы,4),\"\")","v":""}]
[null,null,{"$f":"IFERROR(INDEX(tabEvents[],SMALL(IF(Даты=C$21,ROW(Даты)),ROW(2:2))-НачальныйРядТаблицы,4),\"\")","v":""},null,null,{"$f":"IFERROR(INDEX(tabEvents[],SMALL(IF(Даты=F$21,ROW(Даты)),ROW(2:2))-НачальныйРядТаблицы,4),\"\")","v":""},null,null,{"$f":"IFERROR(INDEX(tabEvents[],SMALL(IF(Даты=I$21,ROW(Даты)),ROW(2:2))-НачальныйРядТаблицы,4),\"\")","v":""},null,null,{"$f":"IFERROR(INDEX(tabEvents[],SMALL(IF(Даты=L$21,ROW(Даты)),ROW(2:2))-НачальныйРядТаблицы,4),\"\")","v":""},null,null,{"$f":"IFERROR(INDEX(tabEvents[],SMALL(IF(Даты=O$21,ROW(Даты)),ROW(2:2))-НачальныйРядТаблицы,4),\"\")","v":""},null,null,{"$f":"IFERROR(INDEX(tabEvents[],SMALL(IF(Даты=R$21,ROW(Даты)),ROW(2:2))-НачальныйРядТаблицы,4),\"\")","v":""},null,null,{"$f":"IFERROR(INDEX(tabEvents[],SMALL(IF(Даты=U$21,ROW(Даты)),ROW(2:2))-НачальныйРядТаблицы,4),\"\")","v":""}]
[null,null,{"$f":"IFERROR(INDEX(tabEvents[],SMALL(IF(Даты=C$21,ROW(Даты)),ROW(3:3))-НачальныйРядТаблицы,4),\"\")","v":""},null,null,{"$f":"IFERROR(INDEX(tabEvents[],SMALL(IF(Даты=F$21,ROW(Даты)),ROW(3:3))-НачальныйРядТаблицы,4),\"\")","v":""},null,null,{"$f":"IFERROR(INDEX(tabEvents[],SMALL(IF(Даты=I$21,ROW(Даты)),ROW(3:3))-НачальныйРядТаблицы,4),\"\")","v":""},null,null,{"$f":"IFERROR(INDEX(tabEvents[],SMALL(IF(Даты=L$21,ROW(Даты)),ROW(3:3))-НачальныйРядТаблицы,4),\"\")","v":""},null,null,{"$f":"IFERROR(INDEX(tabEvents[],SMALL(IF(Даты=O$21,ROW(Даты)),ROW(3:3))-НачальныйРядТаблицы,4),\"\")","v":""},null,null,{"$f":"IFERROR(INDEX(tabEvents[],SMALL(IF(Даты=R$21,ROW(Даты)),ROW(3:3))-НачальныйРядТаблицы,4),\"\")","v":""},null,null,{"$f":"IFERROR(INDEX(tabEvents[],SMALL(IF(Даты=U$21,ROW(Даты)),ROW(3:3))-НачальныйРядТаблицы,4),\"\")","v":""}]
[null,null,{"$f":"IFERROR(INDEX(tabEvents[],SMALL(IF(Даты=C$21,ROW(Даты)),ROW(4:4))-НачальныйРядТаблицы,4),\"\")","v":""},null,null,{"$f":"IFERROR(INDEX(tabEvents[],SMALL(IF(Даты=F$21,ROW(Даты)),ROW(4:4))-НачальныйРядТаблицы,4),\"\")","v":""},null,null,{"$f":"IFERROR(INDEX(tabEvents[],SMALL(IF(Даты=I$21,ROW(Даты)),ROW(4:4))-НачальныйРядТаблицы,4),\"\")","v":""},null,null,{"$f":"IFERROR(INDEX(tabEvents[],SMALL(IF(Даты=L$21,ROW(Даты)),ROW(4:4))-НачальныйРядТаблицы,4),\"\")","v":""},null,null,{"$f":"IFERROR(INDEX(tabEvents[],SMALL(IF(Даты=O$21,ROW(Даты)),ROW(4:4))-НачальныйРядТаблицы,4),\"\")","v":""},null,null,{"$f":"IFERROR(INDEX(tabEvents[],SMALL(IF(Даты=R$21,ROW(Даты)),ROW(4:4))-НачальныйРядТаблицы,4),\"\")","v":""},null,null,{"$f":"IFERROR(INDEX(tabEvents[],SMALL(IF(Даты=U$21,ROW(Даты)),ROW(4:4))-НачальныйРядТаблицы,4),\"\")","v":""}]
[null,null,{"$f":"U21+1","v":"2016-07-25"},null,null,{"$f":"C26+1","v":"2016-07-26"},null,null,{"$f":"F26+1","v":"2016-07-27"},null,null,{"$f":"I26+1","v":"2016-07-28"},null,null,{"$f":"L26+1","v":"2016-07-29"},null,null,{"$f":"O26+1","v":"2016-07-30"},null,null,{"$f":"R26+1","v":"2016-07-31"}]
[null,null,{"$f":"IFERROR(INDEX(tabEvents[],SMALL(IF(Даты=C$26,ROW(Даты)),ROW(1:1))-НачальныйРядТаблицы,4),\"\")","v":""},null,null,{"$f":"IFERROR(INDEX(tabEvents[],SMALL(IF(Даты=F$26,ROW(Даты)),ROW(1:1))-НачальныйРядТаблицы,4),\"\")","v":"Экскурсия по деловой части города"},null,null,{"$f":"IFERROR(INDEX(tabEvents[],SMALL(IF(Даты=I$26,ROW(Даты)),ROW(1:1))-НачальныйРядТаблицы,4),\"\")","v":""},null,null,{"$f":"IFERROR(INDEX(tabEvents[],SMALL(IF(Даты=L$26,ROW(Даты)),ROW(1:1))-НачальныйРядТаблицы,4),\"\")","v":""},null,null,{"$f":"IFERROR(INDEX(tabEvents[],SMALL(IF(Даты=O$26,ROW(Даты)),ROW(1:1))-НачальныйРядТаблицы,4),\"\")","v":"Муниципалитет"},null,null,{"$f":"IFERROR(INDEX(tabEvents[],SMALL(IF(Даты=R$26,ROW(Даты)),ROW(1:1))-НачальныйРядТаблицы,4),\"\")","v":""},null,null,{"$f":"IFERROR(INDEX(tabEvents[],SMALL(IF(Даты=U$26,ROW(Даты)),ROW(1:1))-НачальныйРядТаблицы,4),\"\")","v":""}]
[null,null,{"$f":"IFERROR(INDEX(tabEvents[],SMALL(IF(Даты=C$26,ROW(Даты)),ROW(2:2))-НачальныйРядТаблицы,4),\"\")","v":""},null,null,{"$f":"IFERROR(INDEX(tabEvents[],SMALL(IF(Даты=F$26,ROW(Даты)),ROW(2:2))-НачальныйРядТаблицы,4),\"\")","v":"Посещение баров"},null,null,{"$f":"IFERROR(INDEX(tabEvents[],SMALL(IF(Даты=I$26,ROW(Даты)),ROW(2:2))-НачальныйРядТаблицы,4),\"\")","v":""},null,null,{"$f":"IFERROR(INDEX(tabEvents[],SMALL(IF(Даты=L$26,ROW(Даты)),ROW(2:2))-НачальныйРядТаблицы,4),\"\")","v":""},null,null,{"$f":"IFERROR(INDEX(tabEvents[],SMALL(IF(Даты=O$26,ROW(Даты)),ROW(2:2))-НачальныйРядТаблицы,4),\"\")","v":""},null,null,{"$f":"IFERROR(INDEX(tabEvents[],SMALL(IF(Даты=R$26,ROW(Даты)),ROW(2:2))-НачальныйРядТаблицы,4),\"\")","v":""},null,null,{"$f":"IFERROR(INDEX(tabEvents[],SMALL(IF(Даты=U$26,ROW(Даты)),ROW(2:2))-НачальныйРядТаблицы,4),\"\")","v":""}]
[null,null,{"$f":"IFERROR(INDEX(tabEvents[],SMALL(IF(Даты=C$26,ROW(Даты)),ROW(3:3))-НачальныйРядТаблицы,4),\"\")","v":""},null,null,{"$f":"IFERROR(INDEX(tabEvents[],SMALL(IF(Даты=F$26,ROW(Даты)),ROW(3:3))-НачальныйРядТаблицы,4),\"\")","v":""},null,null,{"$f":"IFERROR(INDEX(tabEvents[],SMALL(IF(Даты=I$26,ROW(Даты)),ROW(3:3))-НачальныйРядТаблицы,4),\"\")","v":""},null,null,{"$f":"IFERROR(INDEX(tabEvents[],SMALL(IF(Даты=L$26,ROW(Даты)),ROW(3:3))-НачальныйРядТаблицы,4),\"\")","v":""},null,null,{"$f":"IFERROR(INDEX(tabEvents[],SMALL(IF(Даты=O$26,ROW(Даты)),ROW(3:3))-НачальныйРядТаблицы,4),\"\")","v":""},null,null,{"$f":"IFERROR(INDEX(tabEvents[],SMALL(IF(Даты=R$26,ROW(Даты)),ROW(3:3))-НачальныйРядТаблицы,4),\"\")","v":""},null,null,{"$f":"IFERROR(INDEX(tabEvents[],SMALL(IF(Даты=U$26,ROW(Даты)),ROW(3:3))-НачальныйРядТаблицы,4),\"\")","v":""}]
[null,null,{"$f":"IFERROR(INDEX(tabEvents[],SMALL(IF(Даты=C$26,ROW(Даты)),ROW(4:4))-НачальныйРядТаблицы,4),\"\")","v":""},null,null,{"$f":"IFERROR(INDEX(tabEvents[],SMALL(IF(Даты=F$26,ROW(Даты)),ROW(4:4))-НачальныйРядТаблицы,4),\"\")","v":""},null,null,{"$f":"IFERROR(INDEX(tabEvents[],SMALL(IF(Даты=I$26,ROW(Даты)),ROW(4:4))-НачальныйРядТаблицы,4),\"\")","v":""},null,null,{"$f":"IFERROR(INDEX(tabEvents[],SMALL(IF(Даты=L$26,ROW(Даты)),ROW(4:4))-НачальныйРядТаблицы,4),\"\")","v":""},null,null,{"$f":"IFERROR(INDEX(tabEvents[],SMALL(IF(Даты=O$26,ROW(Даты)),ROW(4:4))-НачальныйРядТаблицы,4),\"\")","v":""},null,null,{"$f":"IFERROR(INDEX(tabEvents[],SMALL(IF(Даты=R$26,ROW(Даты)),ROW(4:4))-НачальныйРядТаблицы,4),\"\")","v":""},null,null,{"$f":"IFERROR(INDEX(tabEvents[],SMALL(IF(Даты=U$26,ROW(Даты)),ROW(4:4))-НачальныйРядТаблицы,4),\"\")","v":""}]
[null,null,{"$f":"U26+1","v":"2016-08-01"},null,null,{"$f":"C31+1","v":"2016-08-02"},null,null,"ПРИМЕЧАНИЯ:"]
[null,null,{"$f":"IFERROR(INDEX(tabEvents[],SMALL(IF(Даты=C$31,ROW(Даты)),ROW(1:1))-НачальныйРядТаблицы,4),\"\")","v":""},null,null,{"$f":"IFERROR(INDEX(tabEvents[],SMALL(IF(Даты=F$31,ROW(Даты)),ROW(1:1))-НачальныйРядТаблицы,4),\"\")","v":""}]
[null,null,{"$f":"IFERROR(INDEX(tabEvents[],SMALL(IF(Даты=C$31,ROW(Даты)),ROW(2:2))-НачальныйРядТаблицы,4),\"\")","v":""},null,null,{"$f":"IFERROR(INDEX(tabEvents[],SMALL(IF(Даты=F$31,ROW(Даты)),ROW(2:2))-НачальныйРядТаблицы,4),\"\")","v":""}]
[null,null,{"$f":"IFERROR(INDEX(tabEvents[],SMALL(IF(Даты=C$31,ROW(Даты)),ROW(3:3))-НачальныйРядТаблицы,4),\"\")","v":""},null,null,{"$f":"IFERROR(INDEX(tabEvents[],SMALL(IF(Даты=F$31,ROW(Даты)),ROW(3:3))-НачальныйРядТаблицы,4),\"\")","v":""}]
[null,null,{"$f":"IFERROR(INDEX(tabEvents[],SMALL(IF(Даты=C$31,ROW(Даты)),ROW(4:4))-НачальныйРядТаблицы,4),\"\")","v":""},null,null,{"$f":"IFERROR(INDEX(tabEvents[],SMALL(IF(Даты=F$31,ROW(Даты)),ROW(4:4))-НачальныйРядТаблицы,4),\"\")","v":""}]

{"sheet":"ВЕРСИЯ ДЛЯ ПЕЧАТИ","index":2,"n_rows":35,"n_cols":21,"rows_kept":35,"merged":[[1,5,1,11],[30,8,34,20]]}
[]
[null,null,{"$f":"ПросмотретьГод","v":2016},null,null,{"$f":"ПросмотретьМесяц","v":"ИЮЛЬ"},0,0,0,0,0,0]
[]
[null,null,"ПН",null,null,"ВТ",null,null,"СР",null,null,"ЧТ",null,null,"ПТ",null,null,"СБ",null,null,"ВС"]
[]
[null,null,{"$f":"КАЛЕНДАРЬ!C6","v":"2016-06-27"},{"$f":"КАЛЕНДАРЬ!D6","v":0},{"$f":"КАЛЕНДАРЬ!E6","v":0},{"$f":"КАЛЕНДАРЬ!F6","v":"2016-06-28"},{"$f":"КАЛЕНДАРЬ!G6","v":0},{"$f":"КАЛЕНДАРЬ!H6","v":0},{"$f":"КАЛЕНДАРЬ!I6","v":"2016-06-29"},{"$f":"КАЛЕНДАРЬ!J6","v":0},{"$f":"КАЛЕНДАРЬ!K6","v":0},{"$f":"КАЛЕНДАРЬ!L6","v":"2016-06-30"},{"$f":"КАЛЕНДАРЬ!M6","v":0},{"$f":"КАЛЕНДАРЬ!N6","v":0},{"$f":"КАЛЕНДАРЬ!O6","v":"2016-07-01"},{"$f":"КАЛЕНДАРЬ!P6","v":0},{"$f":"КАЛЕНДАРЬ!Q6","v":0},{"$f":"КАЛЕНДАРЬ!R6","v":"2016-07-02"},{"$f":"КАЛЕНДАРЬ!S6","v":0},{"$f":"КАЛЕНДАРЬ!T6","v":0},{"$f":"КАЛЕНДАРЬ!U6","v":"2016-07-03"}]
[null,null,{"$f":"КАЛЕНДАРЬ!C7","v":""},{"$f":"КАЛЕНДАРЬ!D7","v":0},{"$f":"КАЛЕНДАРЬ!E7","v":0},{"$f":"КАЛЕНДАРЬ!F7","v":""},{"$f":"КАЛЕНДАРЬ!G7","v":0},{"$f":"КАЛЕНДАРЬ!H7","v":0},{"$f":"КАЛЕНДАРЬ!I7","v":""},{"$f":"КАЛЕНДАРЬ!J7","v":0},{"$f":"КАЛЕНДАРЬ!K7","v":0},{"$f":"КАЛЕНДАРЬ!L7","v":""},{"$f":"КАЛЕНДАРЬ!M7","v":0},{"$f":"КАЛЕНДАРЬ!N7","v":0},{"$f":"КАЛЕНДАРЬ!O7","v":"Общественный сад"},{"$f":"КАЛЕНДАРЬ!P7","v":0},{"$f":"КАЛЕНДАРЬ!Q7","v":0},{"$f":"КАЛЕНДАРЬ!R7","v":"Общественный сад"},{"$f":"КАЛЕНДАРЬ!S7","v":0},{"$f":"КАЛЕНДАРЬ!T7","v":0},{"$f":"КАЛЕНДАРЬ!U7","v":"Вечер кино в парке"}]
[null,null,{"$f":"КАЛЕНДАРЬ!C8","v":""},{"$f":"КАЛЕНДАРЬ!D8","v":"00:00:00"},{"$f":"КАЛЕНДАРЬ!E8","v":"00:00:00"},{"$f":"КАЛЕНДАРЬ!F8","v":""},{"$f":"КАЛЕНДАРЬ!G8","v":"00:00:00"},{"$f":"КАЛЕНДАРЬ!H8","v":"00:00:00"},{"$f":"КАЛЕНДАРЬ!I8","v":""},{"$f":"КАЛЕНДАРЬ!J8","v":"00:00:00"},{"$f":"КАЛЕНДАРЬ!K8","v":"00:00:00"},{"$f":"КАЛЕНДАРЬ!L8","v":""},{"$f":"КАЛЕНДАРЬ!M8","v":"00:00:00"},{"$f":"КАЛЕНДАРЬ!N8","v":"00:00:00"},{"$f":"КАЛЕНДАРЬ!O8","v":"Муниципалитет"},{"$f":"КАЛЕНДАРЬ!P8","v":"00:00:00"},{"$f":"КАЛЕНДАРЬ!Q8","v":"00:00:00"},{"$f":"КАЛЕНДАРЬ!R8","v":""},{"$f":"КАЛЕНДАРЬ!S8","v":"00:00:00"},{"$f":"КАЛЕНДАРЬ!T8","v":"00:00:00"},{"$f":"КАЛЕНДАРЬ!U8","v":""}]
[null,null,{"$f":"КАЛЕНДАРЬ!C9","v":""},{"$f":"КАЛЕНДАРЬ!D9","v":0},{"$f":"КАЛЕНДАРЬ!E9","v":0},{"$f":"КАЛЕНДАРЬ!F9","v":""},{"$f":"КАЛЕНДАРЬ!G9","v":0},{"$f":"КАЛЕНДАРЬ!H9","v":0},{"$f":"КАЛЕНДАРЬ!I9","v":""},{"$f":"КАЛЕНДАРЬ!J9","v":0},{"$f":"КАЛЕНДАРЬ!K9","v":0},{"$f":"КАЛЕНДАРЬ!L9","v":""},{"$f":"КАЛЕНДАРЬ!M9","v":0},{"$f":"КАЛЕНДАРЬ!N9","v":0},{"$f":"КАЛЕНДАРЬ!O9","v":""},{"$f":"КАЛЕНДАРЬ!P9","v":0},{"$f":"КАЛЕНДАРЬ!Q9","v":0},{"$f":"КАЛЕНДАРЬ!R9","v":""},{"$f":"КАЛЕНДАРЬ!S9","v":0},{"$f":"КАЛЕНДАРЬ!T9","v":0},{"$f":"КАЛЕНДАРЬ!U9","v":""}]
[null,null,{"$f":"КАЛЕНДАРЬ!C10","v":""},{"$f":"КАЛЕНДАРЬ!D10","v":0},{"$f":"КАЛЕНДАРЬ!E10","v":0},{"$f":"КАЛЕНДАРЬ!F10","v":""},{"$f":"КАЛЕНДАРЬ!G10","v":0},{"$f":"КАЛЕНДАРЬ!H10","v":0},{"$f":"КАЛЕНДАРЬ!I10","v":""},{"$f":"КАЛЕНДАРЬ!J10","v":0},{"$f":"КАЛЕНДАРЬ!K10","v":0},{"$f":"КАЛЕНДАРЬ!L10","v":""},{"$f":"КАЛЕНДАРЬ!M10","v":0},{"$f":"КАЛЕНДАРЬ!N10","v":0},{"$f":"КАЛЕНДАРЬ!O10","v":""},{"$f":"КАЛЕНДАРЬ!P10","v":0},{"$f":"КАЛЕНДАРЬ!Q10","v":0},{"$f":"КАЛЕНДАРЬ!R10","v":""},{"$f":"КАЛЕНДАРЬ!S10","v":0},{"$f":"КАЛЕНДАРЬ!T10","v":0},{"$f":"КАЛЕНДАРЬ!U10","v":""}]
[null,null,{"$f":"КАЛЕНДАРЬ!C11","v":"2016-07-04"},{"$f":"КАЛЕНДАРЬ!D11","v":0},{"$f":"КАЛЕНДАРЬ!E11","v":0},{"$f":"КАЛЕНДАРЬ!F11","v":"2016-07-05"},{"$f":"КАЛЕНДАРЬ!G11","v":0},{"$f":"КАЛЕНДАРЬ!H11","v":0},{"$f":"КАЛЕНДАРЬ!I11","v":"2016-07-06"},{"$f":"КАЛЕНДАРЬ!J11","v":0},{"$f":"КАЛЕНДАРЬ!K11","v":0},{"$f":"КАЛЕНДАРЬ!L11","v":"2016-07-07"},{"$f":"КАЛЕНДАРЬ!M11","v":0},{"$f":"КАЛЕНДАРЬ!N11","v":0},{"$f":"КАЛЕНДАРЬ!O11","v":"2016-07-08"},{"$f":"КАЛЕНДАРЬ!P11","v":0},{"$f":"КАЛЕНДАРЬ!Q11","v":0},{"$f":"КАЛЕНДАРЬ!R11","v":"2016-07-09"},{"$f":"КАЛЕНДАРЬ!S11","v":0},{"$f":"КАЛЕНДАРЬ!T11","v":0},{"$f":"КАЛЕНДАРЬ!U11","v":"2016-07-10"}]
[null,null,{"$f":"КАЛЕНДАРЬ!C12","v":""},{"$f":"КАЛЕНДАРЬ!D12","v":0},{"$f":"КАЛЕНДАРЬ!E12","v":0},{"$f":"КАЛЕНДАРЬ!F12","v":""},{"$f":"КАЛЕНДАРЬ!G12","v":0},{"$f":"КАЛЕНДАРЬ!H12","v":0},{"$f":"КАЛЕНДАРЬ!I12","v":""},{"$f":"КАЛЕНДАРЬ!J12","v":0},{"$f":"КАЛЕНДАРЬ!K12","v":0},{"$f":"КАЛЕНДАРЬ!L12","v":""},{"$f":"КАЛЕНДАРЬ!M12","v":0},{"$f":"КАЛЕНДАРЬ!N12","v":0},{"$f":"КАЛЕНДАРЬ!O12","v":"Муниципалитет"},{"$f":"КАЛЕНДАРЬ!P12","v":0},{"$f":"КАЛЕНДАРЬ!Q12","v":0},{"$f":"КАЛЕНДАРЬ!R12","v":""},{"$f":"КАЛЕНДАРЬ!S12","v":0},{"$f":"КАЛЕНДАРЬ!T12","v":0},{"$f":"КАЛЕНДАРЬ!U12","v":""}]
[null,null,{"$f":"КАЛЕНДАРЬ!C13","v":""},{"$f":"КАЛЕНДАРЬ!D13","v":0},{"$f":"КАЛЕНДАРЬ!E13","v":0},{"$f":"КАЛЕНДАРЬ!F13","v":""},{"$f":"КАЛЕНДАРЬ!G13","v":0},{"$f":"КАЛЕНДАРЬ!H13","v":0},{"$f":"КАЛЕНДАРЬ!I13","v":""},{"$f":"КАЛЕНДАРЬ!J13","v":0},{"$f":"КАЛЕНДАРЬ!K13","v":0},{"$f":"КАЛЕНДАРЬ!L13","v":""},{"$f":"КАЛЕНДАРЬ!M13","v":0},{"$f":"КАЛЕНДАРЬ!N13","v":0},{"$f":"КАЛЕНДАРЬ!O13","v":""},{"$f":"КАЛЕНДАРЬ!P13","v":0},{"$f":"КАЛЕНДАРЬ!Q13","v":0},{"$f":"КАЛЕНДАРЬ!R13","v":""},{"$f":"КАЛЕНДАРЬ!S13","v":0},{"$f":"КАЛЕНДАРЬ!T13","v":0},{"$f":"КАЛЕНДАРЬ!U13","v":""}]
[null,null,{"$f":"КАЛЕНДАРЬ!C14","v":""},{"$f":"КАЛЕНДАРЬ!D14","v":0},{"$f":"КАЛЕНДАРЬ!E14","v":0},{"$f":"КАЛЕНДАРЬ!F14","v":""},{"$f":"КАЛЕНДАРЬ!G14","v":0},{"$f":"КАЛЕНДАРЬ!H14","v":0},{"$f":"КАЛЕНДАРЬ!I14","v":""},{"$f":"КАЛЕНДАРЬ!J14","v":0},{"$f":"КАЛЕНДАРЬ!K14","v":0},{"$f":"КАЛЕНДАРЬ!L14","v":""},{"$f":"КАЛЕНДАРЬ!M14","v":0},{"$f":"КАЛЕНДАРЬ!N14","v":0},{"$f":"КАЛЕНДАРЬ!O14","v":""},{"$f":"КАЛЕНДАРЬ!P14","v":0},{"$f":"КАЛЕНДАРЬ!Q14","v":0},{"$f":"КАЛЕНДАРЬ!R14","v":""},{"$f":"КАЛЕНДАРЬ!S14","v":0},{"$f":"КАЛЕНДАРЬ!T14","v":0},{"$f":"КАЛЕНДАРЬ!U14","v":""}]
[null,null,{"$f":"КАЛЕНДАРЬ!C15","v":""},{"$f":"КАЛЕНДАРЬ!D15","v":0},{"$f":"КАЛЕНДАРЬ!E15","v":0},{"$f":"КАЛЕНДАРЬ!F15","v":""},{"$f":"КАЛЕНДАРЬ!G15","v":0},{"$f":"КАЛЕНДАРЬ!H15","v":0},{"$f":"КАЛЕНДАРЬ!I15","v":""},{"$f":"КАЛЕНДАРЬ!J15","v":0},{"$f":"КАЛЕНДАРЬ!K15","v":0},{"$f":"КАЛЕНДАРЬ!L15","v":""},{"$f":"КАЛЕНДАРЬ!M15","v":0},{"$f":"КАЛЕНДАРЬ!N15","v":0},{"$f":"КАЛЕНДАРЬ!O15","v":""},{"$f":"КАЛЕНДАРЬ!P15","v":0},{"$f":"КАЛЕНДАРЬ!Q15","v":0},{"$f":"КАЛЕНДАРЬ!R15","v":""},{"$f":"КАЛЕНДАРЬ!S15","v":0},{"$f":"КАЛЕНДАРЬ!T15","v":0},{"$f":"КАЛЕНДАРЬ!U15","v":""}]
[null,null,{"$f":"КАЛЕНДАРЬ!C16","v":"2016-07-11"},{"$f":"КАЛЕНДАРЬ!D16","v":0},{"$f":"КАЛЕНДАРЬ!E16","v":0},{"$f":"КАЛЕНДАРЬ!F16","v":"2016-07-12"},{"$f":"КАЛЕНДАРЬ!G16","v":0},{"$f":"КАЛЕНДАРЬ!H16","v":0},{"$f":"КАЛЕНДАРЬ!I16","v":"2016-07-13"},{"$f":"КАЛЕНДАРЬ!J16","v":0},{"$f":"КАЛЕНДАРЬ!K16","v":0},{"$f":"КАЛЕНДАРЬ!L16","v":"2016-07-14"},{"$f":"КАЛЕНДАРЬ!M16","v":0},{"$f":"КАЛЕНДАРЬ!N16","v":0},{"$f":"КАЛЕНДАРЬ!O16","v":"2016-07-15"},{"$f":"КАЛЕНДАРЬ!P16","v":0},{"$f":"КАЛЕНДАРЬ!Q16","v":0},{"$f":"КАЛЕНДАРЬ!R16","v":"2016-07-16"},{"$f":"КАЛЕНДАРЬ!S16","v":0},{"$f":"КАЛЕНДАРЬ!T16","v":0},{"$f":"КАЛЕНДАРЬ!U16","v":"2016-07-17"}]
[null,null,{"$f":"КАЛЕНДАРЬ!C17","v":"Званый завтрак в торговой палате"},{"$f":"КАЛЕНДАРЬ!D17","v":0},{"$f":"КАЛЕНДАРЬ!E17","v":0},{"$f":"КАЛЕНДАРЬ!F17","v":"Антикварная выставка"},{"$f":"КАЛЕНДАРЬ!G17","v":0},{"$f":"КАЛЕНДАРЬ!H17","v":0},{"$f":"КАЛЕНДАРЬ!I17","v":""},{"$f":"КАЛЕНДАРЬ!J17","v":0},{"$f":"КАЛЕНДАРЬ!K17","v":0},{"$f":"КАЛЕНДАРЬ!L17","v":"Общественный семинар"},{"$f":"КАЛЕНДАРЬ!M17","v":0},{"$f":"КАЛЕНДАРЬ!N17","v":0},{"$f":"КАЛЕНДАРЬ!O17","v":"Муниципалитет"},{"$f":"КАЛЕНДАРЬ!P17","v":0},{"$f":"КАЛЕНДАРЬ!Q17","v":0},{"$f":"КАЛЕНДАРЬ!R17","v":""},{"$f":"КАЛЕНДАРЬ!S17","v":0},{"$f":"КАЛЕНДАРЬ!T17","v":0},{"$f":"КАЛЕНДАРЬ!U17","v":""}]
[null,null,{"$f":"КАЛЕНДАРЬ!C18","v":""},{"$f":"КАЛЕНДАРЬ!D18","v":0},{"$f":"КАЛЕНДАРЬ!E18","v":0},{"$f":"КАЛЕНДАРЬ!F18","v":""},{"$f":"КАЛЕНДАРЬ!G18","v":0},{"$f":"КАЛЕНДАРЬ!H18","v":0},{"$f":"КАЛЕНДАРЬ!I18","v":""},{"$f":"КАЛЕНДАРЬ!J18","v":0},{"$f":"КАЛЕНДАРЬ!K18","v":0},{"$f":"КАЛЕНДАРЬ!L18","v":""},{"$f":"КАЛЕНДАРЬ!M18","v":0},{"$f":"КАЛЕНДАРЬ!N18","v":0},{"$f":"КАЛЕНДАРЬ!O18","v":""},{"$f":"КАЛЕНДАРЬ!P18","v":0},{"$f":"КАЛЕНДАРЬ!Q18","v":0},{"$f":"КАЛЕНДАРЬ!R18","v":""},{"$f":"КАЛЕНДАРЬ!S18","v":0},{"$f":"КАЛЕНДАРЬ!T18","v":0},{"$f":"КАЛЕНДАРЬ!U18","v":""}]
[null,null,{"$f":"КАЛЕНДАРЬ!C19","v":""},{"$f":"КАЛЕНДАРЬ!D19","v":0},{"$f":"КАЛЕНДАРЬ!E19","v":0},{"$f":"КАЛЕНДАРЬ!F19","v":""},{"$f":"КАЛЕНДАРЬ!G19","v":0},{"$f":"КАЛЕНДАРЬ!H19","v":0},{"$f":"КАЛЕНДАРЬ!I19","v":""},{"$f":"КАЛЕНДАРЬ!J19","v":0},{"$f":"КАЛЕНДАРЬ!K19","v":0},{"$f":"КАЛЕНДАРЬ!L19","v":""},{"$f":"КАЛЕНДАРЬ!M19","v":0},{"$f":"КАЛЕНДАРЬ!N19","v":0},{"$f":"КАЛЕНДАРЬ!O19","v":""},{"$f":"КАЛЕНДАРЬ!P19","v":0},{"$f":"КАЛЕНДАРЬ!Q19","v":0},{"$f":"КАЛЕНДАРЬ!R19","v":""},{"$f":"КАЛЕНДАРЬ!S19","v":0},{"$f":"КАЛЕНДАРЬ!T19","v":0},{"$f":"КАЛЕНДАРЬ!U19","v":""}]
[null,null,{"$f":"КАЛЕНДАРЬ!C20","v":""},{"$f":"КАЛЕНДАРЬ!D20","v":0},{"$f":"КАЛЕНДАРЬ!E20","v":0},{"$f":"КАЛЕНДАРЬ!F20","v":""},{"$f":"КАЛЕНДАРЬ!G20","v":0},{"$f":"КАЛЕНДАРЬ!H20","v":0},{"$f":"КАЛЕНДАРЬ!I20","v":""},{"$f":"КАЛЕНДАРЬ!J20","v":0},{"$f":"КАЛЕНДАРЬ!K20","v":0},{"$f":"КАЛЕНДАРЬ!L20","v":""},{"$f":"КАЛЕНДАРЬ!M20","v":0},{"$f":"КАЛЕНДАРЬ!N20","v":0},{"$f":"КАЛЕНДАРЬ!O20","v":""},{"$f":"КАЛЕНДАРЬ!P20","v":0},{"$f":"КАЛЕНДАРЬ!Q20","v":0},{"$f":"КАЛЕНДАРЬ!R20","v":""},{"$f":"КАЛЕНДАРЬ!S20","v":0},{"$f":"КАЛЕНДАРЬ!T20","v":0},{"$f":"КАЛЕНДАРЬ!U20","v":""}]
[null,null,{"$f":"КАЛЕНДАРЬ!C21","v":"2016-07-18"},{"$f":"КАЛЕНДАРЬ!D21","v":0},{"$f":"КАЛЕНДАРЬ!E21","v":0},{"$f":"КАЛЕНДАРЬ!F21","v":"2016-07-19"},{"$f":"КАЛЕНДАРЬ!G21","v":0},{"$f":"КАЛЕНДАРЬ!H21","v":0},{"$f":"КАЛЕНДАРЬ!I21","v":"2016-07-20"},{"$f":"КАЛЕНДАРЬ!J21","v":0},{"$f":"КАЛЕНДАРЬ!K21","v":0},{"$f":"КАЛЕНДАРЬ!L21","v":"2016-07-21"},{"$f":"КАЛЕНДАРЬ!M21","v":0},{"$f":"КАЛЕНДАРЬ!N21","v":0},{"$f":"КАЛЕНДАРЬ!O21","v":"2016-07-22"},{"$f":"КАЛЕНДАРЬ!P21","v":0},{"$f":"КАЛЕНДАРЬ!Q21","v":0},{"$f":"КАЛЕНДАРЬ!R21","v":"2016-07-23"},{"$f":"КАЛЕНДАРЬ!S21","v":0},{"$f":"КАЛЕНДАРЬ!T21","v":0},{"$f":"КАЛЕНДАРЬ!U21","v":"2016-07-24"}]
[null,null,{"$f":"КАЛЕНДАРЬ!C22","v":""},{"$f":"КАЛЕНДАРЬ!D22","v":0},{"$f":"КАЛЕНДАРЬ!E22","v":0},{"$f":"КАЛЕНДАРЬ!F22","v":"Семинар по стратегическому планированию"},{"$f":"КАЛЕНДАРЬ!G22","v":0},{"$f":"КАЛЕНДАРЬ!H22","v":0},{"$f":"КАЛЕНДАРЬ!I22","v":"Уборка в парке"},{"$f":"КАЛЕНДАРЬ!J22","v":0},{"$f":"КАЛЕНДАРЬ!K22","v":0},{"$f":"КАЛЕНДАРЬ!L22","v":""},{"$f":"КАЛЕНДАРЬ!M22","v":0},{"$f":"КАЛЕНДАРЬ!N22","v":0},{"$f":"КАЛЕНДАРЬ!O22","v":"Муниципалитет"},{"$f":"КАЛЕНДАРЬ!P22","v":0},{"$f":"КАЛЕНДАРЬ!Q22","v":0},{"$f":"КАЛЕНДАРЬ!R22","v":""},{"$f":"КАЛЕНДАРЬ!S22","v":0},{"$f":"КАЛЕНДАРЬ!T22","v":0},{"$f":"КАЛЕНДАРЬ!U22","v":""}]
[null,null,{"$f":"КАЛЕНДАРЬ!C23","v":""},{"$f":"КАЛЕНДАРЬ!D23","v":0},{"$f":"КАЛЕНДАРЬ!E23","v":0},{"$f":"КАЛЕНДАРЬ!F23","v":""},{"$f":"КАЛЕНДАРЬ!G23","v":0},{"$f":"КАЛЕНДАРЬ!H23","v":0},{"$f":"КАЛЕНДАРЬ!I23","v":""},{"$f":"КАЛЕНДАРЬ!J23","v":0},{"$f":"КАЛЕНДАРЬ!K23","v":0},{"$f":"КАЛЕНДАРЬ!L23","v":""},{"$f":"КАЛЕНДАРЬ!M23","v":0},{"$f":"КАЛЕНДАРЬ!N23","v":0},{"$f":"КАЛЕНДАРЬ!O23","v":""},{"$f":"КАЛЕНДАРЬ!P23","v":0},{"$f":"КАЛЕНДАРЬ!Q23","v":0},{"$f":"КАЛЕНДАРЬ!R23","v":""},{"$f":"КАЛЕНДАРЬ!S23","v":0},{"$f":"КАЛЕНДАРЬ!T23","v":0},{"$f":"КАЛЕНДАРЬ!U23","v":""}]
[null,null,{"$f":"КАЛЕНДАРЬ!C24","v":""},{"$f":"КАЛЕНДАРЬ!D24","v":0},{"$f":"КАЛЕНДАРЬ!E24","v":0},{"$f":"КАЛЕНДАРЬ!F24","v":""},{"$f":"КАЛЕНДАРЬ!G24","v":0},{"$f":"КАЛЕНДАРЬ!H24","v":0},{"$f":"КАЛЕНДАРЬ!I24","v":""},{"$f":"КАЛЕНДАРЬ!J24","v":0},{"$f":"КАЛЕНДАРЬ!K24","v":0},{"$f":"КАЛЕНДАРЬ!L24","v":""},{"$f":"КАЛЕНДАРЬ!M24","v":0},{"$f":"КАЛЕНДАРЬ!N24","v":0},{"$f":"КАЛЕНДАРЬ!O24","v":""},{"$f":"КАЛЕНДАРЬ!P24","v":0},{"$f":"КАЛЕНДАРЬ!Q24","v":0},{"$f":"КАЛЕНДАРЬ!R24","v":""},{"$f":"КАЛЕНДАРЬ!S24","v":0},{"$f":"КАЛЕНДАРЬ!T24","v":0},{"$f":"КАЛЕНДАРЬ!U24","v":""}]
[null,null,{"$f":"КАЛЕНДАРЬ!C25","v":""},{"$f":"КАЛЕНДАРЬ!D25","v":0},{"$f":"КАЛЕНДАРЬ!E25","v":0},{"$f":"КАЛЕНДАРЬ!F25","v":""},{"$f":"КАЛЕНДАРЬ!G25","v":0},{"$f":"КАЛЕНДАРЬ!H25","v":0},{"$f":"КАЛЕНДАРЬ!I25","v":""},{"$f":"КАЛЕНДАРЬ!J25","v":0},{"$f":"КАЛЕНДАРЬ!K25","v":0},{"$f":"КАЛЕНДАРЬ!L25","v":""},{"$f":"КАЛЕНДАРЬ!M25","v":0},{"$f":"КАЛЕНДАРЬ!N25","v":0},{"$f":"КАЛЕНДАРЬ!O25","v":""},{"$f":"КАЛЕНДАРЬ!P25","v":0},{"$f":"КАЛЕНДАРЬ!Q25","v":0},{"$f":"КАЛЕНДАРЬ!R25","v":""},{"$f":"КАЛЕНДАРЬ!S25","v":0},{"$f":"КАЛЕНДАРЬ!T25","v":0},{"$f":"КАЛЕНДАРЬ!U25","v":""}]
[null,null,{"$f":"КАЛЕНДАРЬ!C26","v":"2016-07-25"},{"$f":"КАЛЕНДАРЬ!D26","v":0},{"$f":"КАЛЕНДАРЬ!E26","v":0},{"$f":"КАЛЕНДАРЬ!F26","v":"2016-07-26"},{"$f":"КАЛЕНДАРЬ!G26","v":0},{"$f":"КАЛЕНДАРЬ!H26","v":0},{"$f":"КАЛЕНДАРЬ!I26","v":"2016-07-27"},{"$f":"КАЛЕНДАРЬ!J26","v":0},{"$f":"КАЛЕНДАРЬ!K26","v":0},{"$f":"КАЛЕНДАРЬ!L26","v":"2016-07-28"},{"$f":"КАЛЕНДАРЬ!M26","v":0},{"$f":"КАЛЕНДАРЬ!N26","v":0},{"$f":"КАЛЕНДАРЬ!O26","v":"2016-07-29"},{"$f":"КАЛЕНДАРЬ!P26","v":0},{"$f":"КАЛЕНДАРЬ!Q26","v":0},{"$f":"КАЛЕНДАРЬ!R26","v":"2016-07-30"},{"$f":"КАЛЕНДАРЬ!S26","v":0},{"$f":"КАЛЕНДАРЬ!T26","v":0},{"$f":"КАЛЕНДАРЬ!U26","v":"2016-07-31"}]
[null,null,{"$f":"КАЛЕНДАРЬ!C27","v":""},{"$f":"КАЛЕНДАРЬ!D27","v":0},{"$f":"КАЛЕНДАРЬ!E27","v":0},{"$f":"КАЛЕНДАРЬ!F27","v":"Экскурсия по деловой части города"},{"$f":"КАЛЕНДАРЬ!G27","v":0},{"$f":"КАЛЕНДАРЬ!H27","v":0},{"$f":"КАЛЕНДАРЬ!I27","v":""},{"$f":"КАЛЕНДАРЬ!J27","v":0},{"$f":"КАЛЕНДАРЬ!K27","v":0},{"$f":"КАЛЕНДАРЬ!L27","v":""},{"$f":"КАЛЕНДАРЬ!M27","v":0},{"$f":"КАЛЕНДАРЬ!N27","v":0},{"$f":"КАЛЕНДАРЬ!O27","v":"Муниципалитет"},{"$f":"КАЛЕНДАРЬ!P27","v":0},{"$f":"КАЛЕНДАРЬ!Q27","v":0},{"$f":"КАЛЕНДАРЬ!R27","v":""},{"$f":"КАЛЕНДАРЬ!S27","v":0},{"$f":"КАЛЕНДАРЬ!T27","v":0},{"$f":"КАЛЕНДАРЬ!U27","v":""}]
[null,null,{"$f":"КАЛЕНДАРЬ!C28","v":""},{"$f":"КАЛЕНДАРЬ!D28","v":0},{"$f":"КАЛЕНДАРЬ!E28","v":0},{"$f":"КАЛЕНДАРЬ!F28","v":"Посещение баров"},{"$f":"КАЛЕНДАРЬ!G28","v":0},{"$f":"КАЛЕНДАРЬ!H28","v":0},{"$f":"КАЛЕНДАРЬ!I28","v":""},{"$f":"КАЛЕНДАРЬ!J28","v":0},{"$f":"КАЛЕНДАРЬ!K28","v":0},{"$f":"КАЛЕНДАРЬ!L28","v":""},{"$f":"КАЛЕНДАРЬ!M28","v":0},{"$f":"КАЛЕНДАРЬ!N28","v":0},{"$f":"КАЛЕНДАРЬ!O28","v":""},{"$f":"КАЛЕНДАРЬ!P28","v":0},{"$f":"КАЛЕНДАРЬ!Q28","v":0},{"$f":"КАЛЕНДАРЬ!R28","v":""},{"$f":"КАЛЕНДАРЬ!S28","v":0},{"$f":"КАЛЕНДАРЬ!T28","v":0},{"$f":"КАЛЕНДАРЬ!U28","v":""}]
[null,null,{"$f":"КАЛЕНДАРЬ!C29","v":""},{"$f":"КАЛЕНДАРЬ!D29","v":0},{"$f":"КАЛЕНДАРЬ!E29","v":0},{"$f":"КАЛЕНДАРЬ!F29","v":""},{"$f":"КАЛЕНДАРЬ!G29","v":0},{"$f":"КАЛЕНДАРЬ!H29","v":0},{"$f":"КАЛЕНДАРЬ!I29","v":""},{"$f":"КАЛЕНДАРЬ!J29","v":0},{"$f":"КАЛЕНДАРЬ!K29","v":0},{"$f":"КАЛЕНДАРЬ!L29","v":""},{"$f":"КАЛЕНДАРЬ!M29","v":0},{"$f":"КАЛЕНДАРЬ!N29","v":0},{"$f":"КАЛЕНДАРЬ!O29","v":""},{"$f":"КАЛЕНДАРЬ!P29","v":0},{"$f":"КАЛЕНДАРЬ!Q29","v":0},{"$f":"КАЛЕНДАРЬ!R29","v":""},{"$f":"КАЛЕНДАРЬ!S29","v":0},{"$f":"КАЛЕНДАРЬ!T29","v":0},{"$f":"КАЛЕНДАРЬ!U29","v":""}]
[null,null,{"$f":"КАЛЕНДАРЬ!C30","v":""},{"$f":"КАЛЕНДАРЬ!D30","v":0},{"$f":"КАЛЕНДАРЬ!E30","v":0},{"$f":"КАЛЕНДАРЬ!F30","v":""},{"$f":"КАЛЕНДАРЬ!G30","v":0},{"$f":"КАЛЕНДАРЬ!H30","v":0},{"$f":"КАЛЕНДАРЬ!I30","v":""},{"$f":"КАЛЕНДАРЬ!J30","v":0},{"$f":"КАЛЕНДАРЬ!K30","v":0},{"$f":"КАЛЕНДАРЬ!L30","v":""},{"$f":"КАЛЕНДАРЬ!M30","v":0},{"$f":"КАЛЕНДАРЬ!N30","v":0},{"$f":"КАЛЕНДАРЬ!O30","v":""},{"$f":"КАЛЕНДАРЬ!P30","v":0},{"$f":"КАЛЕНДАРЬ!Q30","v":0},{"$f":"КАЛЕНДАРЬ!R30","v":""},{"$f":"КАЛЕНДАРЬ!S30","v":0},{"$f":"КАЛЕНДАРЬ!T30","v":0},{"$f":"КАЛЕНДАРЬ!U30","v":""}]
[null,null,{"$f":"КАЛЕНДАРЬ!C31","v":"2016-08-01"},{"$f":"КАЛЕНДАРЬ!D31","v":0},{"$f":"КАЛЕНДАРЬ!E31","v":0},{"$f":"КАЛЕНДАРЬ!F31","v":"2016-08-02"},null,null,{"$f":"КАЛЕНДАРЬ!I31","v":"ПРИМЕЧАНИЯ:"}]
[null,null,{"$f":"КАЛЕНДАРЬ!C32","v":""},{"$f":"КАЛЕНДАРЬ!D32","v":0},{"$f":"КАЛЕНДАРЬ!E32","v":0},{"$f":"КАЛЕНДАРЬ!F32","v":""}]
[null,null,{"$f":"КАЛЕНДАРЬ!C33","v":""},{"$f":"КАЛЕНДАРЬ!D33","v":0},{"$f":"КАЛЕНДАРЬ!E33","v":0},{"$f":"КАЛЕНДАРЬ!F33","v":""}]
[null,null,{"$f":"КАЛЕНДАРЬ!C34","v":""},{"$f":"КАЛЕНДАРЬ!D34","v":0},{"$f":"КАЛЕНДАРЬ!E34","v":0},{"$f":"КАЛЕНДАРЬ!F34","v":""}]
[null,null,{"$f":"КАЛЕНДАРЬ!C35","v":""},{"$f":"КАЛЕНДАРЬ!D35","v":0},{"$f":"КАЛЕНДАРЬ!E35","v":0},{"$f":"КАЛЕНДАРЬ!F35","v":""}]

{"sheet":"АДМИНИСТРАТОР","index":3,"n_rows":14,"n_cols":3,"rows_kept":14,"hidden":true}
[]
[null,"МЕСЯЦ","ЧИСЛО"]
[null,"ЯНВАРЬ",1]
[null,"ФЕВРАЛЬ",2]
[null,"МАРТ",3]
[null,"АПРЕЛЬ",4]
[null,"МАЙ",5]
[null,"ИЮНЬ",6]
[null,"ИЮЛЬ",7]
[null,"АВГУСТ",8]
[null,"СЕНТЯБРЬ",9]
[null,"ОКТЯБРЬ",10]
[null,"НОЯБРЬ",11]
[null,"ДЕКАБРЬ",12]